bitfinex/quotes_ETHUSD_20250422
["timestamp","ask_amount","ask_price","bid_price","bid_amount"]
[1745332416720,6.192,1648.2,1648.1,6.06759298]
[1745332416924,6.192,1648.2,1648.0,12.13558108]
[1745332417221,6.192,1648.2,1648.0,6.0677854]
[1745332417455,6.192,1648.2,1648.0,6.06772713]
[1745332417644,6.192,1648.2,1648.1,6.06759298]
[1745332418038,20.8004,1648.4,1648.1,6.06739786]
[1745332418340,6.192,1648.3,1648.2,6.06687123]
[1745332418529,6.192,1648.3,1648.1,6.06736394]
[1745332418721,6.192,1648.3,1648.1,12.1347155]
[1745332419044,6.192,1648.3,1648.0,5.08026931]
[1745332419045,6.192,1648.3,1648.0,6.06778056]
[1745332419236,6.192,1648.3,1648.1,6.06757171]
[1745332419409,6.192,1648.3,1648.2,6.06722485]
[1745332419742,6.191,1648.3,1648.1,12.13484493]
[1745332419940,6.191,1648.3,1648.1,6.06740556]
[1745332420114,6.9804,1648.4,1648.0,6.29386228]
[1745332420319,6.9804,1648.4,1648.2,6.06695682]
[1745332420522,6.191,1648.5,1648.4,6.06635842]
[1745332420735,0.31649792,1648.7,1648.6,6.06575275]
[1745332421261,0.31649792,1648.7,1648.3,6.06673164]
[1745332421461,0.31649792,1648.7,1648.4,6.06622619]
[1745332421977,0.31649792,1648.7,1648.3,6.06667735]
[1745332422287,2.18029353,1648.7,1648.2,17.21433031]
[1745332422581,2.18029353,1648.7,1648.3,6.06665631]
[1745332422793,0.31649792,1648.7,1648.3,12.13329598]
[1745332423077,0.31649792,1648.7,1648.3,12.13328539]
[1745332423245,0.31649792,1648.7,1648.3,12.1332558]
[1745332423571,0.31649792,1648.7,1648.3,6.06662473]
[1745332424060,6.38194552,1648.7,1648.2,11.14735782]
[1745332424259,8.24575246,1648.7,1648.2,11.1472752]
[1745332424874,12.89988219,1648.6,1648.0,11.14799544]
[1745332425074,6.06615762,1648.5,1648.1,6.06745848]
[1745332425282,6.19,1648.4,1648.1,6.06745848]
[1745332426789,6.19,1648.4,1648.1,12.13472025]
[1745332427148,1.23238938,1648.6,1648.0,5.08026931]
[1745332427348,6.188,1648.5,1648.1,6.06746183]
[1745332427550,12.25415854,1648.5,1648.1,6.06746183]
[1745332427863,6.188,1648.5,1648.1,6.06746183]
[1745332428069,12.25412766,1648.5,1648.1,6.06746183]
[1745332428378,6.188,1648.5,1648.1,6.06741376]
[1745332428584,6.188,1648.5,1648.1,12.13476753]
[1745332428754,6.188,1648.5,1648.1,6.06735377]
[1745332429157,6.188,1648.6,1648.3,6.82426956]
[1745332429483,6.188,1648.6,1648.4,6.06624566]
[1745332429848,6.188,1648.6,1648.3,6.06662229]
[1745332430048,6.188,1648.6,1648.2,11.14729681]
[1745332430248,6.188,1648.6,1648.2,6.06718915]
[1745332430469,6.188,1648.6,1648.2,6.06700273]
[1745332430690,7.41335725,1648.6,1648.2,6.06700273]
[1745332430885,13.47918569,1648.6,1648.3,0.6064]
[1745332431088,6.83421961,1648.5,1648.3,0.6064]
[1745332431277,12.90070438,1648.5,1648.3,0.6064]
[1745332431472,2.84394968,1648.5,1648.3,0.6064]
[1745332431986,6.188,1648.4,1648.2,0.6064]
[1745332432187,6.188,1648.3,1648.2,0.6064]
[1745332432858,0.768,1648.5,1648.2,0.6064]
[1745332433054,6.188,1648.3,1648.1,0.6064]
[1745332434185,6.188,1648.3,1648.1,6.67387418]
[1745332434362,0.768,1648.5,1648.1,14.01548357]
[1745332434686,0.768,1648.5,1648.3,0.6064]
[1745332434885,6.188,1648.5,1648.4,6.06638557]
[1745332435095,6.188,1648.6,1648.3,6.67311778]
[1745332435297,6.188,1648.6,1648.3,0.6064]
[1745332435791,6.188,1648.6,1648.3,6.67306898]
[1745332435953,0.768,1648.7,1648.4,5.08026931]
[1745332436157,6.188,1648.8,1648.5,6.06594892]
[1745332436997,6.188,1648.8,1648.4,11.14660546]
[1745332437159,0.768,1648.9,1648.6,5.08026931]
[1745332437364,6.187,1649.0,1648.6,5.59436186]
[1745332437584,6.187,1649.0,1648.6,11.65996985]
[1745332437758,6.187,1649.0,1648.6,6.57970054]
[1745332438295,6.187,1649.0,1648.7,6.06537893]
[1745332438667,12.25162192,1649.0,1648.5,6.06594505]
[1745332438893,12.25162192,1649.0,1648.4,11.14660182]
[1745332438894,13.55558186,1649.0,1648.4,11.14660182]
[1745332439102,6.06516597,1648.8,1648.3,8.55375021]
[1745332439273,6.06516597,1648.8,1648.3,14.62033886]
[1745332439460,6.85338348,1648.9,1648.4,6.06625732]
[1745332439769,8.28781782,1648.9,1648.4,12.13254312]
[1745332439972,8.28781782,1648.9,1648.4,6.06625732]
[1745332440505,8.28774397,1648.9,1648.4,6.06625732]
[1745332440971,14.35266047,1648.9,1648.4,6.06625732]
[1745332441171,6.06552899,1648.7,1648.3,0.6064]
[1745332441378,12.25280258,1648.6,1648.3,0.6064]
[1745332441958,0.7886,1648.5,1648.1,6.67395465]
[1745332442158,0.7886,1648.5,1648.3,0.6064]
[1745332442559,6.187,1648.4,1648.3,6.673085]
[1745332442753,6.187,1648.4,1648.3,7.85448714]
[1745332443058,0.7886,1648.7,1648.3,7.85448714]
[1745332443261,6.187,1648.6,1648.3,7.85448714]
[1745332443461,6.85415579,1648.7,1648.2,0.6064]
[1745332443660,12.25299908,1648.6,1648.2,0.6064]
[1745332444073,6.85490913,1648.5,1648.2,0.6064]
[1745332444282,6.06685676,1648.3,1648.2,0.6064]
[1745332444661,0.7886,1648.2,1647.8,0.6064]
[1745332444904,6.187,1648.1,1647.8,7.39251898]
[1745332445074,6.187,1648.1,1648.0,0.6064]
[1745332445270,6.06633368,1648.5,1648.0,0.6064]
[1745332445271,6.187,1648.3,1648.2,0.6064]
[1745332445779,6.187,1648.3,1648.0,7.49582508]
[1745332445966,12.254036,1648.3,1648.0,0.6064]
[1745332446295,6.187,1648.3,1648.0,0.6064]
[1745332446501,6.187,1648.3,1648.0,6.67423053]
[1745332446663,6.187,1648.3,1648.0,6.67433951]
[1745332446864,6.85495096,1648.5,1648.0,6.6743381]
[1745332447064,6.188,1648.2,1648.0,0.6064]
[1745332447463,6.188,1648.2,1648.1,6.06741328]
[1745332447898,6.188,1648.2,1648.0,7.34161807]
[1745332448096,6.188,1648.2,1648.0,7.34163425]
[1745332448409,0.7886,1648.5,1648.2,6.06721714]
[1745332448715,6.188,1648.4,1648.2,6.06721714]
[1745332449020,0.7886,1648.5,1648.2,6.06721714]
[1745332449171,6.188,1648.4,1648.3,6.06668467]
[1745332449497,6.188,1648.5,1648.3,6.06668467]
[1745332449701,6.188,1648.5,1648.2,0.6064]
[1745332450604,12.25416746,1648.5,1648.2,0.6064]
[1745332450770,0.8275,1648.3,1648.0,0.6064]
[1745332451164,6.8945989,1648.3,1648.0,0.6064]
[1745332451406,0.8275,1648.3,1648.0,0.6064]
[1745332451910,6.89460361,1648.3,1648.0,0.6064]
[1745332452093,6.89460361,1648.3,1648.1,0.32947551]
[1745332452298,8.31327676,1648.3,1648.1,0.32947551]
[1745332452606,6.188,1648.2,1648.1,0.32947551]
[1745332452807,12.25522485,1648.2,1648.1,0.32947551]
[1745332453397,13.08272485,1648.2,1648.1,0.32947551]
[1745332453706,16.08272485,1648.2,1648.1,0.32947551]
[1745332454978,9.89472485,1648.2,1648.1,0.32947551]
[1745332455312,16.08272485,1648.2,1648.1,0.32947551]
[1745332455509,18.29769613,1648.2,1648.1,0.32947551]
[1745332455685,18.29869613,1648.2,1648.1,0.32947551]
[1745332457087,12.10969613,1648.2,1648.1,0.32947551]
[1745332457285,18.29869613,1648.2,1648.1,0.32947551]
[1745332457496,6.06804515,1648.0,1647.7,1.1064]
[1745332457690,7.28161556,1648.0,1647.7,1.1064]
[1745332458580,1.21357041,1648.0,1647.7,1.1064]
[1745332458782,9.23147128,1648.2,1647.7,1.1064]
[1745332458987,0.8275,1648.2,1647.8,11.09016747]
[1745332459229,6.185,1648.3,1648.0,6.06784007]
[1745332459521,6.185,1648.3,1648.0,11.0895749]
[1745332459831,6.185,1648.3,1648.2,6.06690173]
[1745332460185,6.185,1648.3,1648.1,6.67382121]
[1745332460394,6.185,1648.3,1648.1,8.53113261]
[1745332460617,6.185,1648.3,1648.1,2.4637114]
[1745332460817,6.185,1648.3,1648.1,0.6064]
[1745332461120,6.185,1648.3,1648.0,0.6064]
[1745332462390,6.185,1648.3,1648.1,0.6064]
[1745332462984,12.25186699,1648.3,1648.1,0.6064]
[1745332463233,6.185,1648.3,1648.1,0.6064]
[1745332463434,6.185,1648.3,1647.9,11.69637581]
[1745332463987,6.185,1648.3,1647.9,11.6965344]
[1745332464330,6.185,1648.3,1647.9,6.6745086]
[1745332464532,6.185,1648.3,1647.9,12.74265462]
[1745332464691,6.185,1648.3,1647.9,6.6745086]
[1745332464893,6.185,1648.3,1647.9,6.67469476]
[1745332465390,6.185,1648.3,1648.1,0.6064]
[1745332466488,12.25185879,1648.3,1648.2,0.6064]
[1745332466710,6.9892,1648.3,1648.2,0.6064]
[1745332467629,6.9892,1648.3,1647.9,6.67460291]
[1745332467793,6.9892,1648.3,1647.9,6.6746734]
[1745332467994,6.9892,1648.3,1647.9,6.67472392]
[1745332468190,6.9892,1648.3,1647.9,6.67462828]
[1745332469228,6.9892,1648.3,1647.9,0.6064]
[1745332469433,6.185,1648.2,1648.1,0.6064]
[1745332470106,0.8042,1648.3,1648.1,0.6064]
[1745332470309,6.185,1648.2,1648.1,0.6064]
[1745332470606,6.185,1648.2,1648.0,0.6064]
[1745332471608,6.185,1648.2,1648.0,6.674281]
[1745332471824,6.185,1648.2,1648.0,0.6064]
[1745332472325,6.185,1648.2,1648.0,7.94849177]
[1745332472559,0.8042,1648.5,1648.2,0.6064]
[1745332472698,6.185,1648.4,1648.2,0.6064]
[1745332473397,12.25164519,1648.4,1648.2,0.6064]
[1745332473708,12.25149298,1648.4,1648.0,0.6064]
[1745332473899,8.09720403,1648.4,1648.0,0.6064]
[1745332474227,14.1636934,1648.4,1648.0,0.6064]
[1745332474432,6.06688228,1648.3,1648.0,0.6064]
[1745332474633,6.06688228,1648.3,1647.9,0.6064]
[1745332474803,20.23068088,1648.4,1647.9,0.6064]
[1745332475007,2.02306809,1648.3,1647.9,0.6064]
[1745332475210,8.08998864,1648.3,1647.9,0.6064]
[1745332475747,0.8276,1648.1,1647.8,0.6064]
[1745332475899,6.185,1648.0,1647.8,0.6064]
[1745332476421,6.185,1648.0,1647.9,6.06832938]
[1745332477236,6.185,1648.0,1647.8,6.67494005]
[1745332477412,6.185,1648.0,1647.8,6.67486663]
[1745332477633,6.185,1648.0,1647.8,6.67486259]
[1745332477838,6.185,1648.0,1647.8,0.6064]
[1745332478331,6.185,1648.0,1647.8,6.67507949]
[1745332478560,6.185,1648.0,1647.9,6.06832938]
[1745332479674,6.185,1648.0,1647.9,11.09014817]
[1745332479868,6.185,1648.0,1647.9,11.91194817]
[1745332480163,0.8276,1648.6,1647.9,11.91187361]
[1745332480362,0.8276,1648.6,1648.1,5.02181879]
[1745332480533,6.185,1648.5,1648.4,6.06625733]
[1745332480863,27.21668151,1648.8,1648.4,0.6064]
[1745332481039,6.185,1648.7,1648.4,0.6064]
[1745332481743,12.25042622,1648.7,1648.2,0.6064]
[1745332482074,6.185,1648.7,1648.2,12.74038032]
[1745332482243,9.52515384,1648.7,1648.2,12.74038032]
[1745332482444,15.59076294,1648.7,1648.2,11.6951893]
[1745332482673,9.52515384,1648.7,1648.2,11.6951893]
[1745332482868,6.185,1648.7,1648.3,6.67314802]
[1745332483787,6.185,1648.7,1648.3,12.73976076]
[1745332483955,6.184,1648.6,1648.3,6.67301132]
[1745332484155,6.184,1648.6,1648.4,6.06643928]
[1745332484378,6.184,1648.6,1648.4,11.88412182]
[1745332484564,0.31651443,1648.8,1648.5,6.06601784]
[1745332484748,0.31651443,1648.8,1648.4,11.88396778]
[1745332484950,6.50051443,1648.8,1648.5,6.06582473]
[1745332485406,6.50051443,1648.8,1648.6,6.06564031]
[1745332485407,6.184,1648.7,1648.6,6.06564031]
[1745332486150,6.50051443,1648.8,1648.6,6.06564031]
[1745332486787,6.184,1648.8,1648.6,6.06564031]
[1745332486974,6.184,1648.8,1648.6,7.27878681]
[1745332487467,26.89740802,1649.0,1648.5,6.06608019]
[1745332487669,6.184,1648.8,1648.6,6.06562028]
[1745332487885,20.8329,1649.0,1648.6,6.06552673]
[1745332488064,6.178,1648.9,1648.6,6.06552673]
[1745332489052,6.178,1648.9,1648.6,6.06572134]
[1745332489964,6.178,1648.9,1648.6,7.27871174]
[1745332490892,6.178,1648.9,1648.6,7.27874553]
[1745332491053,20.8329,1649.0,1648.6,7.27887609]
[1745332491375,20.8329,1649.0,1648.5,12.13180477]
[1745332491376,6.178,1648.9,1648.5,12.13180477]
[1745332491563,6.178,1648.9,1648.6,6.06572379]
[1745332491981,6.178,1648.9,1648.5,12.1317854]
[1745332492189,6.178,1648.9,1648.6,6.06573438]
[1745332492385,6.178,1648.9,1648.5,6.06589003]
[1745332492795,6.178,1648.9,1648.6,6.0657471]
[1745332493107,0.8279,1649.0,1648.6,7.27891081]
[1745332493255,6.178,1648.8,1648.6,7.27874722]
[1745332493454,6.178,1648.8,1648.7,6.06538484]
[1745332493759,6.178,1649.0,1648.7,5.87846758]
[1745332493969,6.178,1649.0,1648.8,6.06471389]
[1745332494484,6.178,1649.0,1648.7,13.1987794]
[1745332494652,6.178,1649.0,1648.7,19.26400944]
[1745332494849,6.178,1649.0,1648.7,0.796]
[1745332495053,6.178,1649.0,1648.6,7.27867341]
[1745332495693,6.178,1649.0,1648.7,6.06536376]
[1745332496055,0.31642537,1649.2,1648.7,0.796]
[1745332496408,0.31642537,1649.2,1648.7,11.88296383]
[1745332496618,7.93564069,1649.2,1648.7,11.88296383]
[1745332496815,1.87208587,1649.2,1648.7,11.88296383]
[1745332496994,6.83137233,1649.1,1648.6,6.06557287]
[1745332497189,0.7674,1649.1,1648.6,6.12615682]
[1745332497814,0.7674,1649.1,1648.7,6.06535409]
[1745332497992,0.7674,1649.1,1648.6,6.12615682]
[1745332498193,0.7674,1649.1,1648.7,6.06518529]
[1745332498417,6.177,1649.0,1648.8,6.06482894]
[1745332499289,6.177,1649.0,1648.7,17.15214575]
[1745332499490,0.31642537,1649.2,1648.7,5.02181879]
[1745332499695,6.177,1649.1,1648.8,6.06484847]
[1745332499891,6.177,1649.1,1648.7,6.06516326]
[1745332500077,6.177,1649.1,1648.8,0.06064349]
[1745332500481,6.177,1649.1,1648.7,6.06516326]
[1745332500724,12.24101868,1649.1,1648.6,12.88831227]
[1745332500924,6.177,1649.1,1648.9,6.06435302]
[1745332501219,6.177,1649.1,1648.8,6.06487827]
[1745332501389,6.177,1649.1,1648.7,7.35413723]
[1745332501720,6.177,1649.1,1648.8,0.06064384]
[1745332501919,6.177,1649.1,1648.6,12.88833923]
[1745332502221,6.177,1649.0,1648.7,0.06064936]
[1745332502423,6.9444,1649.0,1648.6,6.0655604]
[1745332502722,6.9444,1649.0,1648.6,6.12621012]
[1745332503022,6.9444,1649.0,1648.6,6.12618418]
[1745332503591,6.9444,1649.0,1648.6,6.1261831]
[1745332503797,6.9444,1649.0,1648.6,1.86161896]
[1745332504023,1.08382537,1649.2,1648.7,11.08694935]
[1745332504190,6.177,1649.1,1648.7,11.08694935]
[1745332504387,7.14738596,1649.2,1648.7,11.08694935]
[1745332504723,0.7674,1649.0,1648.5,0.7958]
[1745332504900,0.7674,1649.0,1648.6,11.08732138]
[1745332505100,0.7674,1649.0,1648.7,6.06526539]
[1745332505724,0.7674,1649.0,1648.6,17.15285272]
[1745332505929,0.7674,1649.0,1648.6,11.08732138]
[1745332506627,0.7674,1649.0,1648.7,6.0652578]
[1745332506812,0.7674,1649.0,1648.6,6.06550259]
[1745332507209,0.7674,1649.0,1648.6,12.13106245]
[1745332507417,0.7674,1649.0,1648.6,7.45246899]
[1745332507807,0.7674,1649.0,1648.6,13.51797581]
[1745332508007,0.7674,1649.0,1648.7,6.06531841]
[1745332508196,6.177,1649.1,1648.7,6.06531841]
[1745332508609,12.24093259,1649.1,1648.7,6.06531841]
[1745332509714,6.89187632,1649.2,1648.7,7.91620177]
[1745332509715,6.89173145,1649.2,1648.7,7.91620177]
[1745332509898,6.177,1649.0,1648.7,7.91613288]
[1745332510609,6.177,1649.0,1648.8,6.06490574]
[1745332511032,6.177,1649.0,1648.7,13.92071971]
[1745332511231,6.177,1649.0,1648.8,6.06497915]
[1745332511532,6.177,1649.0,1648.8,6.12562327]
[1745332511833,6.177,1649.0,1648.8,6.12562325]
[1745332511996,0.8281,1649.2,1648.8,7.52366805]
[1745332512204,6.176,1649.1,1648.8,8.27682395]
[1745332512531,6.176,1649.1,1648.6,6.87937376]
[1745332512728,6.176,1649.1,1648.7,0.06064514]
[1745332512935,12.24012325,1649.1,1648.6,6.87936567]
[1745332513225,6.176,1649.1,1648.8,6.06497205]
[1745332513436,6.176,1649.1,1648.8,6.06496518]
[1745332513637,0.7964,1649.4,1649.1,6.06366807]
[1745332513823,6.176,1649.3,1649.1,0.06063238]
[1745332514411,1.11275918,1649.6,1649.1,0.06063238]
[1745332514611,6.176,1649.5,1649.1,6.06376535]
[1745332514828,6.176,1649.5,1649.1,7.27655671]
[1745332515407,6.176,1649.4,1649.1,7.27659451]
[1745332515615,6.176,1649.4,1649.1,6.06376014]
[1745332515923,6.176,1649.4,1649.2,12.94053489]
[1745332516127,6.176,1649.4,1649.2,6.87714488]
[1745332516436,6.176,1649.5,1649.2,6.87714488]
[1745332516642,0.31635918,1649.6,1649.2,6.87714488]
[1745332516817,0.31635918,1649.6,1649.3,0.68771449]
[1745332517003,0.31635918,1649.6,1649.2,0.8138]
[1745332517204,6.176,1649.5,1649.2,0.8138]
[1745332517406,6.176,1649.5,1649.2,6.87734564]
[1745332517623,6.176,1649.5,1649.2,0.8138]
[1745332517940,6.176,1649.5,1649.1,5.02181879]
[1745332518144,6.176,1649.5,1649.1,12.33623576]
[1745332518308,6.176,1649.5,1649.1,12.27560579]
[1745332519013,6.176,1649.5,1649.1,7.253787]
[1745332519412,6.9724,1649.5,1649.1,7.25387955]
[1745332520034,6.9724,1649.5,1649.1,7.25372853]
[1745332520230,6.9724,1649.5,1649.2,0.72537285]
[1745332521453,6.168,1649.4,1649.2,0.72537285]
[1745332522004,6.168,1649.4,1649.2,6.78888228]
[1745332522935,6.168,1649.4,1649.2,6.78867874]
[1745332523242,6.168,1649.4,1649.2,0.72537285]
[1745332523435,6.168,1649.4,1649.1,1.18997534]
[1745332523630,6.168,1649.4,1649.1,1.25060475]
[1745332523842,6.168,1649.4,1649.1,12.33619622]
[1745332524011,6.168,1649.4,1649.1,12.27546395]
[1745332524211,6.168,1649.4,1649.1,18.33918217]
[1745332524514,6.168,1649.4,1649.2,7.77419128]
[1745332524942,6.168,1649.4,1649.2,7.77398332]
[1745332525448,6.168,1649.4,1649.2,1.71065989]
[1745332525610,6.168,1649.4,1649.1,1.18997534]
[1745332525812,6.06371056,1649.2,1648.6,6.89518971]
[1745332526144,0.8171,1649.0,1648.6,6.89533381]
[1745332526351,6.167,1648.9,1648.7,5.08246405]
[1745332526662,6.167,1649.0,1648.8,6.06484311]
[1745332526817,6.167,1649.0,1648.9,0.60648431]
[1745332527316,6.167,1649.0,1648.9,6.67113347]
[1745332527536,6.167,1649.0,1648.9,0.60648431]
[1745332529338,6.167,1649.0,1648.8,6.06476413]
[1745332529339,12.23160574,1649.0,1648.6,0.8296]
[1745332529540,0.8171,1648.9,1648.5,5.02181879]
[1745332529746,6.88191712,1648.9,1648.5,5.02181879]
[1745332530162,6.88191712,1648.9,1648.5,11.0879192]
[1745332530333,6.88191712,1648.9,1648.2,0.6064]
[1745332530334,6.06593764,1648.6,1648.2,0.6064]
[1745332530533,13.05126937,1648.5,1648.2,1.16957742]
[1745332530726,6.9851,1648.5,1647.9,6.39768396]
[1745332531046,6.9851,1648.5,1647.9,6.39759468]
[1745332531047,6.0667287,1648.4,1647.9,6.39759468]
[1745332531443,6.06697324,1648.3,1647.9,6.39759468]
[1745332531754,6.06759298,1648.1,1648.0,0.15157566]
[1745332531955,6.168,1648.1,1648.0,0.15157566]
[1745332532855,0.8171,1648.2,1648.0,0.15157566]
[1745332533056,0.8171,1648.4,1648.0,0.21224876]
[1745332533216,6.169,1648.3,1648.0,0.81256889]
[1745332534566,12.23602385,1648.3,1648.0,0.81256889]
[1745332534782,12.23602385,1648.3,1648.0,0.15157566]
[1745332535272,6.06734626,1648.2,1648.0,0.15157566]
[1745332535440,12.23602385,1648.3,1648.0,0.15157566]
[1745332536239,6.06724879,1648.2,1648.0,0.15157566]
[1745332536439,6.169,1648.3,1648.0,0.15157566]
[1745332536640,6.169,1648.3,1648.0,6.21923555]
[1745332536844,6.169,1648.3,1648.0,0.15157566]
[1745332537078,7.47426156,1648.3,1648.0,0.15157566]
[1745332537283,7.47426156,1648.3,1648.0,6.21943058]
[1745332537463,7.47426156,1648.3,1648.0,0.15157566]
[1745332538075,7.47426156,1648.3,1648.0,6.21953026]
[1745332538756,7.47426156,1648.3,1648.0,0.15157566]
[1745332539559,7.47426156,1648.3,1648.0,6.21944487]
[1745332540215,6.169,1648.3,1648.1,6.06756528]
[1745332540351,0.8171,1648.4,1648.2,0.15029873]
[1745332540550,6.171,1648.3,1648.2,0.15029873]
[1745332540775,6.171,1648.3,1648.2,6.21738532]
[1745332541253,0.826,1648.6,1648.2,6.21738532]
[1745332541593,6.171,1648.3,1648.2,0.15029873]
[1745332541878,6.171,1648.3,1648.2,6.21752358]
[1745332542076,6.171,1648.3,1648.2,0.15029873]
[1745332542679,1.51515833,1648.6,1648.2,6.2173204]
[1745332542888,0.31648685,1648.8,1648.6,6.06541159]
[1745332543092,6.48748685,1648.8,1648.6,6.06541159]
[1745332543250,7.21883554,1648.8,1648.7,0.1481116]
[1745332543449,12.96736567,1648.8,1648.3,6.0666659]
[1745332543649,12.96736567,1648.8,1648.4,0.15213646]
[1745332544283,6.171,1648.7,1648.5,6.12660906]
[1745332544600,0.826,1648.9,1648.4,0.15213646]
[1745332544601,0.826,1648.9,1648.6,6.21569609]
[1745332544751,6.171,1648.8,1648.7,6.06520996]
[1745332544952,6.171,1648.8,1648.7,0.14798104]
[1745332545283,6.17,1648.8,1648.7,6.2131564]
[1745332545496,0.826,1649.1,1648.9,6.06464916]
[1745332545675,6.17,1649.1,1649.0,6.06428138]
[1745332545855,6.17,1649.1,1649.0,0.14321905]
[1745332546877,6.17,1649.1,1648.7,7.29300781]
[1745332547086,6.17,1649.1,1649.0,0.14321905]
[1745332547402,6.787,1649.1,1649.0,0.14321905]
[1745332547606,6.17,1649.1,1648.8,6.06478687]
[1745332547786,6.17,1649.1,1648.9,0.14542822]
[1745332548102,6.17,1649.1,1648.9,6.20993577]
[1745332548273,6.17,1649.1,1648.8,6.06478437]
[1745332548476,6.17,1649.1,1649.0,0.14518493]
[1745332548677,6.787,1649.1,1648.9,0.14592022]
[1745332549000,6.787,1649.1,1649.0,0.14538147]
[1745332549204,0.826,1649.0,1648.7,6.06518012]
[1745332549503,0.826,1649.0,1648.7,6.0652791]
[1745332549804,1.5873,1649.0,1648.8,0.14645903]
[1745332549969,1.5873,1649.0,1648.6,12.13108899]
[1745332550170,1.5873,1649.0,1648.7,0.14699791]
[1745332550969,6.06480833,1648.9,1648.7,0.14699791]
[1745332551183,6.06480833,1648.9,1648.4,6.06627888]
[1745332551380,6.67179144,1648.8,1648.5,0.14706911]
[1745332551579,6.67179144,1648.8,1648.1,6.06744591]
[1745332551580,6.06610469,1648.6,1648.1,6.06744591]
[1745332551780,0.826,1648.4,1648.0,6.86255404]
[1745332552005,6.161,1648.3,1647.9,6.39761153]
[1745332552317,13.53349514,1648.3,1647.9,0.32951084]
[1745332552515,6.0673841,1648.2,1647.9,0.32951084]
[1745332552675,6.89375626,1648.1,1647.9,0.32951084]
[1745332553170,6.06796116,1648.0,1647.9,0.32951084]
[1745332553375,10.34369948,1648.0,1647.9,0.32951084]
[1745332553585,12.48702693,1648.0,1647.9,0.32951084]
[1745332553786,6.07007659,1647.5,1647.0,0.5]
[1745332554105,9.06832938,1647.9,1647.0,0.5]
[1745332554106,0.326,1647.4,1647.0,0.5]
[1745332554311,6.162,1647.3,1647.2,6.0707573]
[1745332554492,6.162,1647.3,1647.2,6.07070364]
[1745332554694,6.162,1647.3,1647.1,6.07103399]
[1745332555010,6.162,1647.3,1647.2,6.0709082]
[1745332555303,6.162,1647.3,1647.1,6.07103442]
[1745332556020,6.162,1647.3,1647.1,6.07123519]
[1745332556896,6.162,1647.3,1647.1,6.07106947]
[1745332557777,6.162,1647.3,1647.0,6.57144189]
[1745332558180,6.07127678,1647.1,1647.0,0.5]
[1745332558515,14.09309557,1647.1,1647.0,0.5]
[1745332559294,0.7601,1647.2,1647.0,0.5]
[1745332559608,6.163,1647.1,1647.0,0.5]
[1745332559807,0.7601,1647.2,1647.0,0.5]
[1745332560133,6.163,1647.1,1646.8,6.88323052]
[1745332560282,6.163,1647.1,1646.7,6.07267438]
[1745332560283,3.7601,1647.0,1646.7,6.07267438]
[1745332560478,3.7601,1647.0,1646.3,5.02181879]
[1745332560479,6.164,1646.9,1646.6,6.07290003]
[1745332560683,6.164,1646.9,1646.6,6.07287023]
[1745332560913,11.70856238,1647.3,1646.6,6.07287023]
[1745332560914,6.06638964,1648.5,1647.2,0.811]
[1745332561084,0.7601,1648.2,1647.9,6.06832938]
[1745332561285,0.7601,1648.2,1648.1,6.06759298]
[1745332561599,0.7601,1648.2,1648.0,6.06768543]
[1745332561600,6.164,1648.3,1647.9,6.06812005]
[1745332561795,12.84741709,1648.3,1647.8,6.06850804]
[1745332561992,6.7804,1648.3,1647.8,6.06842636]
[1745332562193,6.7804,1648.3,1647.9,6.06831709]
[1745332562384,6.0678271,1648.1,1647.6,6.06916239]
[1745332562615,6.0678271,1648.1,1647.6,6.06921602]
[1745332562918,0.7601,1648.2,1648.0,6.06768768]
[1745332563083,6.164,1648.1,1647.9,6.06810463]
[1745332563481,6.164,1648.1,1647.9,6.06809803]
[1745332563721,6.164,1648.1,1647.8,6.12919191]
[1745332563722,6.164,1648.1,1647.8,0.06067795]
[1745332564019,0.7601,1648.0,1647.6,6.06914885]
[1745332564203,0.7601,1648.0,1647.7,6.06893812]
[1745332564413,0.7601,1648.0,1647.7,6.12962407]
[1745332564721,0.7601,1648.0,1647.7,6.06893812]
[1745332565287,0.7601,1648.2,1647.7,0.06068558]
[1745332565517,6.164,1648.1,1647.8,6.06847509]
[1745332565824,0.7601,1648.2,1647.9,6.06819475]
[1745332565989,3.0,1648.3,1647.9,6.06819475]
[1745332565990,6.164,1648.1,1648.0,6.06777173]
[1745332566818,0.7601,1648.4,1648.0,12.13554346]
[1745332567027,6.06778641,1648.1,1647.9,0.06067206]
[1745332567321,1.36687864,1648.0,1647.7,6.12949049]
[1745332567480,0.7601,1648.0,1647.7,12.19838279]
[1745332567680,0.7601,1648.0,1647.7,6.12949049]
[1745332568114,0.7601,1648.0,1647.7,0.06068582]
[1745332568329,0.7601,1648.0,1647.4,11.15412513]
[1745332568330,25.09398842,1648.0,1646.9,6.07180122]
[1745332568484,6.06952783,1647.6,1647.1,6.07104284]
[1745332568689,6.164,1647.5,1647.1,6.07104284]
[1745332569184,6.82842938,1647.9,1647.1,6.07104284]
[1745332569185,0.7601,1647.9,1647.2,0.0607015]
[1745332569391,6.164,1647.8,1647.4,6.06982038]
[1745332569700,6.164,1647.8,1647.3,6.07049364]
[1745332569701,12.23272918,1647.8,1647.3,6.07049364]
[1745332570220,12.23288963,1647.8,1647.3,6.07028178]
[1745332570427,0.7601,1647.6,1646.9,6.07179189]
[1745332570628,6.07035439,1647.4,1646.9,6.07179694]
[1745332570797,6.164,1647.3,1646.9,6.07179694]
[1745332571000,12.23455249,1647.3,1646.9,6.07179694]
[1745332571411,6.164,1647.3,1646.9,6.07175681]
[1745332571628,5.75403834,1648.5,1647.7,6.06906597]
[1745332571826,1.21947852,1648.5,1647.6,0.811]
[1745332572031,6.165,1648.4,1647.6,1.26901457]
[1745332572231,6.165,1648.4,1647.8,0.55]
[1745332572409,6.165,1648.4,1648.1,6.06742649]
[1745332572911,6.165,1648.3,1648.2,6.0670849]
[1745332573311,0.7601,1648.5,1648.1,6.06742649]
[1745332573541,6.165,1648.4,1647.9,6.06805795]
[1745332573701,0.6165,1648.3,1647.9,0.06067494]